Cogmind - Beta 14 @@@ ROGUE MODE // 2024.09.08 @ 19:27:46 Player: Syanka Result: Destroyed by H-77 Assassin with Coil Gun Performance ------------- Evolutions (7) 3500 Regions Visited (27) 5400 Robots Destroyed (351) 1755 Value Destroyed (14646) 14646 Prototype IDs (54) 1080 Alien Tech Used (4) 800 Bonus (3486) 3486 TOTAL SCORE: 30667 Bonus ------- High Alert Combat Kills 325 Follower Combat Kills 1830 Network Hubs Disabled 400 Met Data Miner 300 Met Imprinter 300 Destroyed Z-Imprinter 1000 Triggered Deep Caves Wall 500 Exposed GOLEM Chamber 500 Met Zhirov 300 Built Enhanced Grunts 300 Met R17 at Cetus 500 Met R17 at Research 2000 Friendly Fire -4769 Cogmind --------- Core Integrity 0/1300 Matter 264/300 Energy 419/1100 System Corruption 15% Temperature Cool (0) Movement Immobile (Siege) Ox2 Location -3/Quarantine Parts ------- > --- POWER (3) -------- Assembled Flux Generator > --- PROPULSION (5) --- Heavy Treads Assembled Alloy Leg Assembled Alloy Leg > --- UTILITY (11) ----- Huge Storage Unit Assembled Biocell Array Experimental Thermal Shield Experimental Thermal Shield Advanced Hacking Suite GOLEM Unit > --- WEAPON (2) ------- Assembled Focal Cannon > --- INVENTORY (25) --- Light Particle Reactor Medium Treads Heavy Treads Advanced Heat Sink Zionite Biocell (600) Zionite Biocell (600) Zionite Biocell (600) Improved Sensor Array Heavy Insulated Plating Heavy Insulated Plating Force Field Phase Redirector Long-range Tractor Beam Plasma Rifle Proton Cannon Heavy Missile Launcher Improved Plasma Cutter CR-A16's Pointy Stick Plasma Lance Peak State ------------ > --- POWER ------------ Fusion Reactor Assembled Flux Generator > --- PROPULSION ------- Armored Medium Treads Heavy Siege Treads Heavy Siege Treads > --- UTILITY ---------- Assembled Nanovents Assembled Nanovents Assembled Nanovents Huge Storage Unit Assembled Biocell Array Assembled Suspension Frame Improved Signal Interpreter Assembled Alloy Armor Advanced Hacking Suite GOLEM Unit > --- WEAPON ----------- Assembled Focal Cannon Assembled Focal Cannon > --- INVENTORY -------- Armored Medium Treads Heavy Siege Treads Advanced Heat Sink Zionite Biocell Zionite Biocell Zionite Biocell Improved Medium Armor Plating Layered Medium Armor Plating Centrium Medium Armor Plating Centrium Medium Armor Plating Centrium Medium Armor Plating Heavy Insulated Plating Heavy Insulated Plating Focal Shield Experimental Thermal Shield Force Field Long-range Tractor Beam Transdimensional Reconstructor Proton Cannon Heavy Missile Launcher Improved Plasma Cutter CR-A16's Pointy Stick [Rating: 171] Favorites ----------- Power Assembled Flux Generator Engine Light Angular Momentum Engine Power Core Fission Core Reactor Assembled Flux Generator Propulsion Light Treads Treads Light Treads Leg Assembled Alloy Leg Wheel Armored Huge Wheel Hover Unit Zionite Glidesys II Utility Huge Storage Unit Device GOLEM Unit Storage Huge Storage Unit Processor Surveybot 24 Chip Hackware Advanced Hacking Suite Protection Assembled Alloy Armor Artifact Phase Redirector Weapon Assembled Focal Cannon Energy Gun Thermic Laser Energy Cannon Assembled Focal Cannon Ballistic Gun Heavy Assault Rifle Launcher Heavy Missile Launcher Special Weapon Mining Laser Impact Weapon Great Maul Piercing Weapon CR-A16's Pointy Stick Build | -11 -10 -9 -9 -8 -7 -7 -7 -7 -6 -6 -6 -6 -6 -6 -5 -5 -5 -5 -5 -5 -4 -4 -4 -4 -3 -3 -3 ------- Run | Yrd Mat Mat Min Mat Fac Low Low Dat Pro Fac Low Low Zio Dee Pro Fac Ext Cet Arc Hub Fac Upp Upp Zhi Pro Res Qua Slots Evolved 14 | . . 2 . 2 2 . . . . 2 . . . . . 2 . . . . 2 . . . . 2 . Power 2 | . . . . . . . . . . 1 . . . . . 1 . . . . . . . . . . . Propulsion 3 | . . 1 . 1 . . . . . . . . . . . . . . . . . . . . . 1 . Utility 9 | . . 1 . 1 2 . . . . 1 . . . . . 1 . . . . 2 . . . . 1 . Weapon . | . . . . . . . . . . . . . . . . . . . . . . . . . . . . Parts Attached 603 | 8 29 67 22 39 34 18 9 2 13 78 15 13 24 72 12 25 23 17 4 5 15 10 3 11 3 28 4 Power 41 | 1 . 2 . . 1 2 1 . . 9 1 3 3 10 . 1 1 . 1 . 2 . . 1 . 2 . Engine 20 | 1 . 2 . . 1 1 1 . . 4 . 2 2 3 . . 1 . 1 . . . . . . 1 . Core 13 | . . . . . . 1 . . . 5 1 1 1 2 . . . . . . 2 . . . . . . Reactor 8 | . . . . . . . . . . . . . . 5 . 1 . . . . . . . 1 . 1 . Propulsion 170 | 3 24 47 10 12 2 1 4 . 2 23 . . . 12 . 2 4 3 . 3 2 2 . 2 . 11 1 Treads 103 | . 12 23 5 9 1 . 4 . 2 9 . . . 8 . 2 4 3 . 3 2 2 . 2 . 11 1 Leg 3 | . . . . . . . . . . 1 . . . 2 . . . . . . . . . . . . . Wheel 63 | 3 12 24 5 3 1 1 . . . 13 . . . 1 . . . . . . . . . . . . . Hover 1 | . . . . . . . . . . . . . . 1 . . . . . . . . . . . . . Flight . | . . . . . . . . . . . . . . . . . . . . . . . . . . . . Utility 278 | 2 1 8 3 16 21 14 1 . 9 32 9 7 7 35 12 21 17 10 3 2 10 8 2 8 3 14 3 Device 201 | 1 . 4 2 12 14 13 . . 9 22 8 5 6 20 12 18 9 8 2 2 4 7 2 7 3 9 2 Storage 11 | 1 1 2 . . . . . . . 1 . . 1 5 . . . . . . . . . . . . . Processor 5 | . . . . . . . . . . 1 . . . 2 . 1 . . . . 1 . . . . . . Hackware 10 | . . . . . 3 . . . . 2 . . . . . 2 . . . . 3 . . . . . . Protection 50 | . . 2 1 4 4 1 1 . . 6 1 2 . 8 . . 8 2 1 . 2 1 . 1 . 5 . Artifact 1 | . . . . . . . . . . . . . . . . . . . . . . . . . . . 1 Weapon 114 | 2 4 10 9 11 10 1 3 2 2 14 5 3 14 15 . 1 1 4 . . 1 . 1 . . 1 . Energy Gun 32 | . . 1 4 4 5 1 . . . 4 3 2 3 5 . . . . . . . . . . . . . Energy Cannon 32 | . . . . 2 1 . 2 2 1 6 . . 7 6 . . . 4 . . . . . . . 1 . Ballistic Gun 17 | 2 4 7 3 . . . . . . . . 1 . . . . . . . . . . . . . . . Ballistic Cannon . | . . . . . . . . . . . . . . . . . . . . . . . . . . . . Launcher 15 | . . 1 1 2 1 . 1 . 1 3 . . 1 1 . 1 . . . . 1 . 1 . . . . Special Weapon 2 | . . 1 . . . . . . . . . . 1 . . . . . . . . . . . . . . Impact Weapon 15 | . . . 1 3 3 . . . . 1 2 . 2 3 . . . . . . . . . . . . . Slashing Weapon . | . . . . . . . . . . . . . . . . . . . . . . . . . . . . Piercing Weapon 1 | . . . . . . . . . . . . . . . . . 1 . . . . . . . . . . Special Melee Weapon . | . . . . . . . . . . . . . . . . . . . . . . . . . . . . Unidentified Prototypes 27 | . . 2 . . 1 . . . . 2 . . 1 13 . . . 2 . . . . . 4 . 1 1 Corrupted Parts 5 | . . . . . . . . . . . . . 1 1 . . . 2 . 1 . . . . . . . System Corruption 30 | . . . . . . . . . . . . . 5 6 . . . 8 . 11 . . . . . . . Parts Lost 91 | . . . . 1 . 5 3 . 3 17 . 2 . 2 . 2 5 1 . 12 . . 1 . 1 25 11 Power 14 | . . . . . . 1 1 . . 4 . . . 1 . . 1 . . 2 . . . . . 3 1 Propulsion 22 | . . . . 1 . . 2 . 1 6 . . . . . 1 3 . . 2 . . . . . 5 1 Utility 45 | . . . . . . 3 . . 2 6 . 2 . 1 . 1 1 1 . 5 . . 1 . 1 14 7 Weapon 10 | . . . . . . 1 . . . 1 . . . . . . . . . 3 . . . . . 3 2 Highest Loss Streak 11 | . . . . 1 . 3 3 . 2 5 . 2 . 1 . 1 4 1 . 10 . . 1 . 1 11 11 To Critical Strikes 2 | . . . . . . . . . . . . . . . . . 1 1 . . . . . . . . . Average Slot Usage (%) 83 | . 100 89 88 90 77 78 84 76 92 90 80 79 77 87 86 85 82 75 72 75 80 83 83 67 84 75 77 Engine 4 | . 14 11 11 9 7 6 7 7 7 5 . 4 6 2 . . 2 5 5 4 . . . . . . . Core 2 | . . . . . . . . . . 5 13 7 5 2 . . . . . . 3 5 5 1 . . . Reactor 3 | . . . . . . . . . . . . . . 4 6 11 8 5 5 4 4 5 5 8 10 7 8 Treads 13 | . 1 7 . 34 18 15 16 30 30 15 . . . 19 13 9 13 12 11 10 15 14 15 7 5 12 7 Leg 2 | . . . . . . . . . . . . . . 4 13 11 5 . . . . . . 6 10 1 4 Wheel 5 | . 26 25 32 1 5 7 5 . . 8 13 13 13 . . . . . . . . . . . . . . Device 18 | . 14 3 10 16 13 20 29 23 23 21 25 25 25 24 26 17 12 25 17 17 14 10 15 15 18 17 21 Storage 9 | . 14 11 11 9 7 7 7 7 7 6 6 6 6 9 13 11 11 11 11 10 9 10 10 8 10 9 9 Processor 2 | . . . . . . . . . . 2 6 3 . . . 4 5 5 5 5 10 10 10 10 7 2 . Hackware 1 | . . . . . 1 . . . . 4 . . . . . . . . . . 4 5 5 5 5 4 4 Protection 4 | . . 8 . 1 7 4 . 7 7 3 . 2 6 5 . 4 7 1 1 4 7 10 4 1 5 7 8 Energy Gun 2 | . . . 1 11 5 14 3 . . 4 12 13 6 1 . . . . . . . . . . . . . Energy Cannon 7 | . . . . 5 7 . 11 . 14 8 . . 3 7 13 10 10 4 11 10 9 10 9 3 10 7 9 Ballistic Gun 2 | . 28 21 19 . . . . . . . . . . . . . . . . . . . . . . . . Peak Build Rating 171 | 7 9 18 22 28 46 47 44 36 40 64 71 73 65 123 120 143 140 148 148 148 153 153 147 163 155 171 170 Average Rating 87 | 5 8 16 18 26 39 43 41 29 37 50 65 66 60 90 115 136 126 127 142 144 143 147 143 126 153 153 160 On Entrance 81 | . 7 9 18 22 28 42 42 36 36 39 54 65 65 60 111 111 139 124 148 147 73 153 147 142 155 152 165 Naked Turns . | . . . . . . . . . . . . . . . . . . . . . . . . . . . . Heaviest Build 193 | 14 89 157 157 166 179 181 176 176 178 193 181 181 187 187 166 174 182 181 181 180 171 171 170 171 172 187 184 Greatest Support 195 | 26 40 60 38 86 83 28 80 80 80 80 56 56 56 90 60 60 120 160 160 160 137 137 137 137 60 195 140 Greatest Overweight (x) 57 | . 4 4 4 4 6 6 6 2 2 10 3 3 3 6 2 57 5 2 56 2 2 2 1 56 2 5 1 Average Overweight (x) 2 | . 3 3 4 1 5 5 5 1 2 3 3 2 2 1 2 2 1 1 11 . . 1 1 5 2 . 1 Largest Inventory Capacity 30 | 8 25 30 30 30 30 30 30 30 30 30 30 30 30 30 25 25 25 25 25 25 25 25 25 25 25 25 25 Average Capacity 27 | 7 24 29 30 30 30 30 30 30 30 30 30 30 30 25 25 25 25 25 25 25 25 25 25 25 25 25 25 Most Carried 30 | 7 21 30 30 30 30 30 29 28 30 30 30 30 30 30 25 25 25 25 25 25 25 25 25 25 25 25 24 Average Carried 26 | 4 16 28 29 29 29 27 28 27 26 29 29 29 29 25 24 24 24 24 24 24 18 25 24 24 24 23 23 Final Capacity 30 | 8 25 30 30 30 30 30 30 30 30 30 30 30 30 25 25 25 25 25 25 25 25 25 25 25 25 25 25 Final Carried 30 | 7 21 30 30 30 30 25 26 26 30 30 30 30 29 25 25 25 25 25 25 23 25 25 25 25 25 22 22 Class Distribution -------------------- 40% | Hauler-Mutant 17% | Scavenger-Mutant 15% | Scavenger-Golem 13% | Golem 7% | Mutant 3% | Scavenger-Skirmisher Dominant Class ---------------- Mutant | -10/Materials Hauler-Mutant | -9/Materials Hauler-Mutant | -9/Mines Hauler-Mutant | -8/Materials Hauler-Mutant | -7/Factory Hauler-Mutant | -7/Lower Caves Hauler-Mutant | -7/Lower Caves Hauler-Mutant | -7/Data Miner Hauler-Mutant | -6/Proximity Caves Hauler-Mutant | -6/Factory Hauler-Mutant | -6/Lower Caves Hauler-Mutant | -6/Lower Caves Hauler-Mutant | -6/Zion Scavenger-Mutant | -6/Deep Caves Golem | -5/Proximity Caves Scavenger-Golem | -5/Factory Scavenger-Golem | -5/Extension Commander-Mutant | -5/Cetus Golem | -5/Archives Scavenger-Golem | -5/Hub_04(d) Scavenger-Mutant | -4/Factory Scavenger-Mutant | -4/Upper Caves Scavenger-Mutant | -4/Upper Caves Mutant | -4/Zhirov Scavenger-Golem | -3/Proximity Caves Scavenger-Skirmisher | -3/Research Scavenger-Golem | -3/Quarantine Resources | -11 -10 -9 -9 -8 -7 -7 -7 -7 -6 -6 -6 -6 -6 -6 -5 -5 -5 -5 -5 -5 -4 -4 -4 -4 -3 -3 -3 ----------- Run | Yrd Mat Mat Min Mat Fac Low Low Dat Pro Fac Low Low Zio Dee Pro Fac Ext Cet Arc Hub Fac Upp Upp Zhi Pro Res Qua Matter Collected 8475 | 305 711 1072 313 366 420 170 158 . 223 867 144 319 131 1149 162 295 269 280 103 103 219 108 131 . 172 285 . Remotely 60 | . . . . . . . . . . . . . . . . . . . . . . . . . 60 . . Salvage Created 18626 | 177 542 1288 302 850 834 564 207 . 359 2122 94 131 . 2219 777 1460 1319 393 310 557 1097 448 243 . 209 1867 257 Parts 799 | 14 40 67 16 47 46 14 2 . 11 93 . 2 . 19 35 66 57 16 18 33 61 14 13 . 14 83 18 Haulers Intercepted 10 | . 2 4 . . 1 . . . . 1 . . . . . 1 . . . . 1 . . . . . . Recyclers Shooed 13 | . . 2 . 2 2 . . . . 2 . . . . . 3 . . . 2 . . . . . . . Parts Field Recycled . | . . . . . . . . . . . . . . . . . . . . . . . . . . . . Retrieved Matter . | . . . . . . . . . . . . . . . . . . . . . . . . . . . . Parts Self-Destructed 102 | . . . . . . 13 6 . 11 . . 1 . . 35 . . . . . . 11 11 . 14 . . Prevented 3 | . . . . . . . . . . . . . . . . . . . . . . 3 . . . . . Kills | -11 -10 -9 -9 -8 -7 -7 -7 -7 -6 -6 -6 -6 -6 -6 -5 -5 -5 -5 -5 -5 -4 -4 -4 -4 -3 -3 -3 ------- Run | Yrd Mat Mat Min Mat Fac Low Low Dat Pro Fac Low Low Zio Dee Pro Fac Ext Cet Arc Hub Fac Upp Upp Zhi Pro Res Qua Combat Hostiles Destroyed 301 | . 14 19 6 18 13 10 5 . 7 28 1 1 . 53 13 22 13 3 . 8 17 6 6 . 5 29 4 Melee 1 | . . . . . . . . . . . . . . 1 . . . . . . . . . . . . . Guns 60 | . 14 15 3 11 4 8 . . . 4 . 1 . . . . . . . . . . . . . . . Cannons 133 | . . . . . 3 . 3 . 4 13 . . . 1 13 17 13 . . 8 14 6 2 . 5 27 4 AOE 77 | . . 4 3 7 3 . 1 . 2 9 . . . 35 . 5 . . . . 3 . 4 . . 1 . Classes Destroyed 28 | 2 5 3 1 2 2 2 . . . 1 . . . 4 . . . . . 1 . . 1 . . 4 . Worker 10 | . . 1 . . 2 . . . . 7 . . . . . . . . . . . . . . . . . Builder 15 | . 1 1 . . 2 . . . . 5 . . . . . 1 1 . . 2 1 . . . . 1 . Tunneler 8 | 4 . 1 . . . . . . . 1 . . . . . . 1 . . . 1 . . . . . . Hauler 10 | . 2 4 . . 1 . . . . 1 . . . . . 1 . . . . 1 . . . . . . Recycler 18 | 1 1 3 1 3 2 . . . . 3 . . . . . 2 2 . . . . . . . . . . Mechanic 1 | . . . . 1 . . . . . . . . . . . . . . . . . . . . . . . Operator 16 | . . 2 . . . . . . . 2 . . . . . 1 1 . 9 . . . . . . 1 . Watcher 12 | . 2 3 . 2 1 . . . . 1 . . . . . 1 2 . . . . . . . . . . Swarmer 67 | . 12 4 3 10 3 . 2 . 2 7 . . . . . 5 . . . . 4 1 4 . 4 6 . Saboteur 1 | . . . . . . . . . . 1 . . . . . . . . . . . . . . . . . Grunt 92 | . 2 11 2 5 5 6 2 . 4 13 . 1 . . 11 9 6 . . . 7 1 . . . 6 1 Brawler 6 | . . . 1 . . 2 1 . . . . . . . . 1 1 . . . . . . . . . . Duelist 2 | . . . . 1 . . . . . . . . . . . 1 . . . . . . . . . . . Sentry 19 | . . 4 . 2 2 . . . . 2 . . . . . . 3 . . 3 2 1 . . . . . Demolisher 2 | . . . . . . . . . . . . . . . . . . . . . . . . . . 2 . Hunter 12 | . . . . . 1 1 . . . 1 . . . . . . 1 . . 2 . 2 2 . . 2 . Programmer 26 | . . . . . 2 . . . . 4 1 . . . 2 6 . . . 2 4 . . . 1 1 3 Heavy 1 | . . . . . . . . . . . . . . . . . . . . 1 . . . . . . . Behemoth 4 | . . . . . . 1 . . 1 . . . . . . . 1 . . . . 1 . . . . . Cetus Guard 3 | . . . . . . . . . . . . . . . . . . 3 . . . . . . . . . Striker 10 | . . . . . . . . . . . . . . . . . . . . . . . . . . 10 . Executioner 2 | . . . . . . . . . . . . . . . . . . . . . . . . . . 2 . Z-Light 2 | . . . . . . . . . . . . . . 2 . . . . . . . . . . . . . Samaritan 2 | . . . . . . 1 . . . . 1 . . . . . . . . . . . . . . . . Assembler 2 | . . . . . . . . . . . . . . 2 . . . . . . . . . . . . . Assembled 35 | . . . . . . . . . . . . . . 35 . . . . . . . . . . . . . Golem 16 | . . . . . . . . . . . . . . 16 . . . . . . . . . . . . . Thug 3 | . . . 1 . . . . . . . . . . . . . 1 1 . . . . . . . . . Savage 1 | . . . . . . . . . . . . . . 1 . . . . . . . . . . . . . Guerrilla 1 | . . . . . . . . . . . . . . . . . 1 . . . . . . . . . . Mutant 1 | . . . . . . . . . . . . . . . . . . . . . . . 1 . . . . Revision 1 | . . . . . . . . . . . . . . . . . . . . . . . . . . 1 . Best Kill Streak 37 | 3 6 6 3 7 4 5 2 . 2 8 1 1 . 37 5 10 3 2 5 2 6 3 4 . 4 6 4 Combat Bots Only 35 | . 6 4 3 6 3 5 2 . 2 4 1 1 . 35 5 7 3 2 . 2 5 2 4 . 4 6 4 Max Kills in Single Turn 16 | 1 1 1 2 3 3 1 1 . 1 3 1 1 . 16 1 5 2 1 1 1 3 1 2 . 1 2 1 Gunslinging 1 | . . . . 1 . . . . . . . . . . . . . . . . . . . . . . . Exploded 16 | . . 1 2 3 2 . 1 . 1 3 . . . 16 . 3 . . . . 2 . 2 . . 1 . Melee 1 | . . . . . . . . . . . . . . 1 . . . . . . . . . . . . . Uniques/NPCs Destroyed 2 | . . . . . . . . . . . . . . 1 . . . 1 . . . . . . . . . Z-Imprinter (-6/Deep Caves) A7 (-5/Cetus) Combat | -11 -10 -9 -9 -8 -7 -7 -7 -7 -6 -6 -6 -6 -6 -6 -5 -5 -5 -5 -5 -5 -4 -4 -4 -4 -3 -3 -3 -------- Run | Yrd Mat Mat Min Mat Fac Low Low Dat Pro Fac Low Low Zio Dee Pro Fac Ext Cet Arc Hub Fac Upp Upp Zhi Pro Res Qua Hostile Shots Fired 2047 | . 47 64 22 46 104 102 22 . 58 215 8 4 . 87 65 109 123 17 . 175 99 71 65 . 25 368 151 Missed 519 | . 11 16 9 13 35 39 5 . 18 65 1 2 . 15 18 30 38 2 . 38 27 21 22 . 8 60 26 Damage Taken 28650 | . 342 586 117 459 963 1128 262 . 612 2663 52 177 . 1287 365 1208 1845 222 15 3891 1025 951 541 . 312 7807 1820 Core 2909 | . 54 55 26 40 57 68 12 . 18 205 7 . . 205 18 100 126 10 . 550 59 38 . . 19 1130 112 Absorbed by Shields 1368 | . . . . . . . . . 107 . 54 44 . 369 304 . 41 231 14 . . . . . . 204 . Reduced by Siege Mode 1431 | . . . . . . . . . . . . . . . . . . 8 . 5 13 38 22 . 15 1193 137 Redirected to Shielding 136 | . . 10 . . . . . . . . . . . 126 . . . . . . . . . . . . . Ignored by Resistances 3749 | . . . . . . . . . . 42 . . . 523 228 284 93 36 . . 376 242 121 . 66 1286 452 Regen/Repaired (Parts) 747 | . 29 . . . 245 . . . . . . . . . . . . . . . . . . . . . 473 Core Remaining (%) 73 | 100 78 . 79 92 . . . . 77 . . . . . 48 . . . . 21 . . . . 89 . . Volleys Fired 1044 | 15 47 75 17 36 58 34 14 . 22 120 11 12 8 37 25 50 66 18 27 31 48 20 35 . 18 166 34 Largest 2 | 2 2 2 2 2 2 2 2 . 2 2 2 2 2 2 2 2 2 2 2 2 2 2 2 . 2 2 2 Hottest 165 | 40 40 100 140 140 150 150 165 . 165 165 105 145 150 163 50 50 50 144 50 50 50 50 50 . 50 75 50 Shots Fired 1876 | 30 94 141 29 64 115 69 25 . 46 227 21 19 11 71 50 89 103 37 52 57 88 40 65 . 36 255 42 Gun 556 | 30 94 132 24 47 56 63 1 . . 63 21 19 . 6 . . . . . . . . . . . . . Cannon 1262 | . . . . 13 57 6 22 . 44 152 . . 9 56 50 87 103 37 52 57 84 40 60 . 36 255 42 Launcher 53 | . . 5 5 4 2 . 2 . 2 12 . . 1 9 . 2 . . . . 4 . 5 . . . . Special 5 | . . 4 . . . . . . . . . . 1 . . . . . . . . . . . . . . Kinetic 272 | 30 94 132 16 . . . . . . . . . . . . . . . . . . . . . . . . Thermal 1463 | . . 4 4 60 113 69 23 . 44 212 21 19 10 21 50 87 103 14 52 57 84 40 60 . 36 238 42 Explosive 28 | . . . . . 2 . 2 . 2 2 . . . 9 . 2 . . . . 4 . 5 . . . . Electromagnetic 113 | . . 5 9 4 . . . . . 13 . . 1 41 . . . 23 . . . . . . . 17 . Robot Hit Streak 27 | 6 12 19 14 8 12 23 11 . 11 13 5 10 . 25 22 10 12 9 13 19 27 21 12 . 9 27 26 Robot Miss Streak 7 | 1 4 4 5 4 7 3 3 . 2 3 2 1 . 2 3 6 2 2 3 1 2 1 2 . 1 2 1 Penetration Max . | . . . . . . . . . . . . . . . . . . . . . . . . . . . . Secondary Targets 10 | . 5 1 . 2 . 2 . . . . . . . . . . . . . . . . . . . . . Max Gunslinging Chain 1 | . 1 1 . 1 . 1 . . . . . . . . . . . . . . . . . . . . . Shots Hit Robots 1192 | 19 51 90 21 46 67 58 16 . 23 140 11 7 . 80 38 54 79 28 36 30 56 34 26 . 10 142 30 Core Hits 634 | 9 29 47 11 42 32 31 6 . 11 75 4 5 . 104 15 33 25 5 14 17 33 12 11 . 5 53 5 Critical Kills 6 | . . 2 . . . . 1 . 1 1 . . . 1 . . . . . . . . . . . . . Critical Parts Destroyed 11 | 1 1 . . . . . . . . . . . . 9 . . . . . . . . . . . . . Critical Strikes 37 | 1 1 2 . 2 7 1 1 . 1 5 3 1 . 10 . . . 1 . . . . . . . 1 . Burn 18 | . . . . 2 7 1 . . . 4 3 1 . . . . . . . . . . . . . . . Meltdown 4 | . . . . . . . 1 . 1 1 . . . 1 . . . . . . . . . . . . . Destroy 4 | 1 1 2 . . . . . . . . . . . . . . . . . . . . . . . . . Corrupt 2 | . . . . . . . . . . . . . . . . . . 1 . . . . . . . 1 . Smash 9 | . . . . . . . . . . . . . . 9 . . . . . . . . . . . . . Melee Attacks 80 | . . . 6 11 9 . . . . 3 1 . 14 36 . . . . . . . . . . . . . Impact 80 | . . . 6 11 9 . . . . 3 1 . 14 36 . . . . . . . . . . . . . Slashing . | . . . . . . . . . . . . . . . . . . . . . . . . . . . . Piercing . | . . . . . . . . . . . . . . . . . . . . . . . . . . . . Sneak Attacks . | . . . . . . . . . . . . . . . . . . . . . . . . . . . . Combat Hostiles . | . . . . . . . . . . . . . . . . . . . . . . . . . . . . Follow-up Attacks . | . . . . . . . . . . . . . . . . . . . . . . . . . . . . Damage Inflicted 49267 | 180 586 1518 419 1222 2097 1432 535 . 866 4621 228 151 . 5638 2029 4335 4112 1204 1605 1823 3114 1372 1495 . 481 6529 1675 Guns 6631 | 180 547 1423 253 628 854 1307 . . . 958 228 151 . 102 . . . . . . . . . . . . . Cannons 33155 | . . . . 182 825 125 427 . 656 2762 . . . 1142 2021 3182 4112 1038 1605 1426 2583 1372 1144 . 481 6397 1675 Explosions 7477 | . . 95 166 385 376 . 108 . 210 873 . . . 2726 . 1137 . 166 . 266 531 . 351 . . 87 . Melee 1668 | . . . . . . . . . . . . . . 1668 . . . . . . . . . . . . . Ramming 336 | . 39 . . 27 42 . . . . 28 . . . . 8 16 . . . 131 . . . . . 45 . Kinetic 2358 | 180 547 1423 208 . . . . . . . . . . . . . . . . . . . . . . . . Thermal 36230 | . . 24 67 933 1679 1432 427 . 656 3630 228 151 . 412 2021 3182 4112 689 1605 1426 2583 1372 1144 . 481 6301 1675 Explosive 5759 | . . . . . 376 . 108 . 210 320 . . . 2726 . 1137 . . . . 531 . 351 . . . . Electromagnetic 2916 | . . 71 144 262 . . . . . 643 . . . 832 . . . 515 . 266 . . . . . 183 . Impact 1668 | . . . . . . . . . . . . . . 1668 . . . . . . . . . . . . . Slashing . | . . . . . . . . . . . . . . . . . . . . . . . . . . . . Piercing . | . . . . . . . . . . . . . . . . . . . . . . . . . . . . Highest Corruption 52 | . . . . . 5 5 5 5 5 6 7 14 14 6 7 4 4 12 12 52 2 2 2 2 2 9 15 Average Corruption 5 | . . . . . 1 5 5 5 5 3 6 9 7 6 6 2 4 11 7 7 1 2 2 2 2 8 9 Corruption Purged 6 | . . . . . . . . . . . . . . . . . . . 6 . . . . . . . . Corruption Blocked . | . . . . . . . . . . . . . . . . . . . . . . . . . . . . Effects 655 | . . . . . 16 14 16 6 59 35 22 40 7 112 22 28 56 35 42 41 2 12 23 12 9 34 12 Message Errors 185 | . . . . . 3 2 6 1 23 9 6 7 3 35 3 6 17 15 13 11 . 4 6 3 1 9 2 Matter Fused 158 | . . . . . 5 2 4 2 10 12 3 15 2 24 6 3 13 9 10 11 2 . 5 5 3 9 3 Heat Flow Errors 65 | . . . . . 1 2 2 . 3 3 2 4 1 10 3 3 6 4 5 5 . . 3 1 1 3 3 Energy Discharges 82 | . . . . . . 4 2 . 9 2 4 5 1 13 . 6 6 3 9 5 . 2 1 2 3 3 2 Parts Rejected 3 | . . . . . 1 1 . . . . . . . . . . . . . . . 1 . . . . . Parts Fused 8 | . . . . . . . . 1 . . 1 1 . 2 . . 2 . . . . . . . . 1 . Data Loss (minor) 81 | . . . . . 1 1 1 1 7 7 5 3 . 14 8 7 7 2 . 5 . 2 3 1 . 5 1 Data Loss (major) 24 | . . . . . 3 1 . 1 1 . . 1 . 4 2 1 2 1 1 1 . 3 1 . 1 . . Misfires 28 | . . . . . 2 1 . . 4 . 1 2 . 6 . 1 3 1 1 1 . . 2 . . 3 . Alerts 14 | . . . . . . . 1 . 2 1 . 1 . 4 . 1 . . 1 1 . . 2 . . . . Misdirections 1 | . . . . . . . . . . . . . . . . . . . . 1 . . . . . . . Weapon Failures 6 | . . . . . . . . . . 1 . 1 . . . . . . 2 . . . . . . 1 1 Overload Shots 9 | . . . . . . . . . . . 1 8 . . . . . . . . . . . . . . . Effects 1 | . . . . . . . . . . . . 1 . . . . . . . . . . . . . . . Heat Surge 1 | . . . . . . . . . . . . 1 . . . . . . . . . . . . . . . Overflow Damage 2837 | . . . 16 24 47 . . . 14 145 . . . 774 41 422 186 35 333 88 130 . 77 . 70 139 296 Projectiles 1818 | . . . . 22 21 . . . . 145 . . . 30 41 294 186 25 333 62 97 . 70 . 70 126 296 Explosions 395 | . . . 16 . 26 . . . 14 . . . . 135 . 128 . 10 . 26 33 . 7 . . . . Melee 624 | . . . . 2 . . . . . . . . . 609 . . . . . . . . . . . 13 . Knockbacks 15 | . . . . . . . . . . 1 . . . 12 . . . . . 1 . . . . . 1 . Impact 15 | . . . . . . . . . . 1 . . . 12 . . . . . 1 . . . . . 1 . Kinetic . | . . . . . . . . . . . . . . . . . . . . . . . . . . . . Secondary . | . . . . . . . . . . . . . . . . . . . . . . . . . . . . Self-Inflicted Damage 594 | . 19 25 . 28 19 . 18 . 35 38 . . . 63 . . . 28 . 201 15 . 42 . . 63 . Shots 18 | . . 3 . 3 . . 1 . 1 3 . . . 1 . . . 1 . 2 1 . 1 . . 1 . Rammed 17 | . 1 . . 1 2 . . . . 1 . . . . . . . . . 11 . . . . . 1 . Targets Rammed 22 | . 1 . . 1 2 . . . . 2 . . . . 2 1 . . . 11 . . . . . 2 . Kicked 3 | . . . . . . . . . . . . . . . 2 1 . . . . . . . . . . . Crushed 2 | . . . . . . . . . . 1 . . . . . . . . . . . . . . . 1 . Highest Temperature 373 | . 6 48 122 264 327 327 182 . 199 200 221 229 255 373 174 336 291 276 235 173 30 3 235 98 89 144 114 Average Temperature 74 | . 6 14 40 74 92 95 87 . 87 56 66 80 117 139 76 121 104 125 104 77 10 3 110 58 49 2 45 Received Heat Transfer 4235 | . 42 228 24 189 306 507 135 . 192 612 . 8 . 235 175 183 366 12 4 27 319 111 . . . 150 410 Effects 21 | . . . . . . 2 . . . . . . 3 8 . 6 . . 2 . . . . . . . . Shutdowns 1 | . . . . . . . . . . . . . . 1 . . . . . . . . . . . . . Energy Bleed 5 | . . . . . . . . . . . . . . 4 . 1 . . . . . . . . . . . Interference 14 | . . . . . . 2 . . . . . . 3 3 . 4 . . 2 . . . . . . . . Damage (minor) 1 | . . . . . . . . . . . . . . . . 1 . . . . . . . . . . . Siege Activations 28 | . . . . . . . . . . . . . . . . . . 1 1 2 4 4 2 . 1 12 1 Total Turns 467 | . . . . . . . . . . . . . . . . . . 8 1 16 61 49 32 . 15 223 62 Longest Duration 62 | . . . . . . . . . . . . . . . . . . 8 1 11 45 17 29 . 15 45 62 Robots Corrupted 22 | . . . . 1 . . . . . 1 . . . 16 . . . 4 . . . . . . . . . Combat Hostiles 20 | . . . . . . . . . . 1 . . . 16 . . . 3 . . . . . . . . . Parts Fried 22 | . . . . 4 . . . . . 6 . . . 4 . . . 2 . 4 . . . . . 2 . Impact Corruptions 18 | . . . . 1 . . . . . . . . . 16 . . . . . . . . . . . 1 . Robots Melted 11 | . . . . . 3 2 1 . 1 1 1 . . 1 . . . . . . . . . . . 1 . Combat Hostiles 10 | . . . . . 3 2 1 . 1 1 1 . . . . . . . . . . . . . . 1 . Parts Melted 63 | . . 1 . 3 7 6 4 . 5 16 3 . . 2 . 1 3 . 2 1 2 . 1 . 2 4 . Heat Transferred 29971 | . . 50 75 1561 3071 2784 646 . 981 5918 720 385 . 290 950 1375 2137 311 887 775 1350 825 650 . 225 3230 775 Parts Sabotaged . | . . . . . . . . . . . . . . . . . . . . . . . . . . . . Parts Stolen . | . . . . . . . . . . . . . . . . . . . . . . . . . . . . Parts Stripped . | . . . . . . . . . . . . . . . . . . . . . . . . . . . . Power Chain Reactions 9 | . . 1 1 2 . . . . . 2 . . 1 . . . . 1 . . . . . . . 1 . Alert | -11 -10 -9 -9 -8 -7 -7 -7 -7 -6 -6 -6 -6 -6 -6 -5 -5 -5 -5 -5 -5 -4 -4 -4 -4 -3 -3 -3 ------- Run | Yrd Mat Mat Min Mat Fac Low Low Dat Pro Fac Low Low Zio Dee Pro Fac Ext Cet Arc Hub Fac Upp Upp Zhi Pro Res Qua Peak Influence 881 | 25 288 370 220 388 278 . . . . 405 . . . . . 517 330 306 282 881 639 . . . . 308 254 Initial 383 | . 16 1 100 3 44 . . . . . . . . . . 84 198 68 56 . 383 . . . . . 171 Average 154 | 10 90 175 82 168 93 . . . . 100 . . . . . 287 118 136 88 377 375 . . . . 108 205 Maximum Alert Level 3 | . 1 1 1 1 1 . . . . 2 . . . . . 2 1 1 1 3 2 . . . . 1 1 Low Security (%) 71 | 100 95 52 82 61 91 . . . . 83 . . . . . 47 85 97 80 7 . . . . . 84 61 Level 1 22 | . 4 47 17 38 8 . . . . 15 . . . . . 7 14 2 19 54 80 . . . . 15 38 Level 2 5 | . . . . . . . . . . . . . . . . 45 . . . 31 19 . . . . . . Level 3 . | . . . . . . . . . . . . . . . . . . . . 5 . . . . . . . Level 4 . | . . . . . . . . . . . . . . . . . . . . . . . . . . . . Level 5 . | . . . . . . . . . . . . . . . . . . . . . . . . . . . . High Security . | . . . . . . . . . . . . . . . . . . . . . . . . . . . . Max Security . | . . . . . . . . . . . . . . . . . . . . . . . . . . . . Squads Dispatched 44 | . . 3 . 1 4 . . . . 12 . . . . . 6 1 . . 6 3 . . . . 6 2 Investigation 5 | . . 1 . . 1 . . . . 1 . . . . . 1 1 . . . . . . . . . . Extermination 15 | . . . . . 2 . . . . 4 . . . . . 3 . . . 2 3 . . . . . 1 Reinforcement 24 | . . 2 . 1 1 . . . . 7 . . . . . 2 . . . 4 . . . . . 6 1 Assault . | . . . . . . . . . . . . . . . . . . . . . . . . . . . . Garrison . | . . . . . . . . . . . . . . . . . . . . . . . . . . . . Intercept . | . . . . . . . . . . . . . . . . . . . . . . . . . . . . Searches Triggered . | . . . . . . . . . . . . . . . . . . . . . . . . . . . . Construction Impeded 5 | . . . . . . . . . . 3 . . . . . 1 . . . 1 . . . . . . . Haulers Reinforced 3 | . . . . . . . . . . . . . . . . . . . . . . . . . . 3 . Active Scanning Responses . | . . . . . . . . . . . . . . . . . . . . . . . . . . . . Cargo Convoy Interrupts 1 | . . . . . . . . . . 1 . . . . . . . . . . . . . . . . . Stealth | -11 -10 -9 -9 -8 -7 -7 -7 -7 -6 -6 -6 -6 -6 -6 -5 -5 -5 -5 -5 -5 -4 -4 -4 -4 -3 -3 -3 --------- Run | Yrd Mat Mat Min Mat Fac Low Low Dat Pro Fac Low Low Zio Dee Pro Fac Ext Cet Arc Hub Fac Upp Upp Zhi Pro Res Qua Distress Signals 26 | . . 3 . 4 . . . . . 3 . . . . . . 2 2 . 3 1 . . . . 8 . Communications Jammed . | . . . . . . . . . . . . . . . . . . . . . . . . . . . . Distress Signals . | . . . . . . . . . . . . . . . . . . . . . . . . . . . . Times Spotted 481 | . 21 29 6 37 20 10 5 . 7 46 1 1 . 64 14 33 20 14 17 29 25 7 3 . 5 58 9 Peak Tracking Total 37 | . 6 4 3 7 3 5 2 . 3 5 1 1 . 37 5 6 4 5 1 11 5 3 4 . 4 8 5 Tactical Retreats 17 | . 2 1 . 4 . . . . 1 2 . . . 1 1 2 2 . . . 1 . . . . . . Traps | -11 -10 -9 -9 -8 -7 -7 -7 -7 -6 -6 -6 -6 -6 -6 -5 -5 -5 -5 -5 -5 -4 -4 -4 -4 -3 -3 -3 ------- Run | Yrd Mat Mat Min Mat Fac Low Low Dat Pro Fac Low Low Zio Dee Pro Fac Ext Cet Arc Hub Fac Upp Upp Zhi Pro Res Qua Traps Triggered 10 | . . 1 . . 2 . . . . 3 . . . . . 1 3 . . . . . . . . . . Indirectly 1 | . . . . . . . . . . 1 . . . . . . . . . . . . . . . . . Trap Hack Attempts . | . . . . . . . . . . . . . . . . . . . . . . . . . . . . Triggered . | . . . . . . . . . . . . . . . . . . . . . . . . . . . . Disarmed . | . . . . . . . . . . . . . . . . . . . . . . . . . . . . Reprogrammed . | . . . . . . . . . . . . . . . . . . . . . . . . . . . . Reused . | . . . . . . . . . . . . . . . . . . . . . . . . . . . . Traps Extracted . | . . . . . . . . . . . . . . . . . . . . . . . . . . . . Installed . | . . . . . . . . . . . . . . . . . . . . . . . . . . . . Triggered 3 | . . . . . . . . . . 1 . . . . . . . . . . . 1 1 . . . . Machines | -11 -10 -9 -9 -8 -7 -7 -7 -7 -6 -6 -6 -6 -6 -6 -5 -5 -5 -5 -5 -5 -4 -4 -4 -4 -3 -3 -3 ---------- Run | Yrd Mat Mat Min Mat Fac Low Low Dat Pro Fac Low Low Zio Dee Pro Fac Ext Cet Arc Hub Fac Upp Upp Zhi Pro Res Qua Machines Disabled 36 | . . 1 . . 3 . . . . 4 1 . 1 2 . 3 1 . 3 13 1 . . . . 2 1 Max in Single Turn 8 | . . 1 . . 1 . . . . 1 1 . 1 1 . 1 1 . 1 8 1 . . . . 1 1 Garrison Access 3 | . . . . . 2 . . . . . . . . . . . . . . 1 . . . . . . . Network Hub 2 | . . . . . . . . . . . . . . . . . . . . 2 . . . . . . . Machines Repaired . | . . . . . . . . . . . . . . . . . . . . . . . . . . . . Machines Dismantled . | . . . . . . . . . . . . . . . . . . . . . . . . . . . . Machines Sabotaged . | . . . . . . . . . . . . . . . . . . . . . . . . . . . . Overloaded Fab Kills . | . . . . . . . . . . . . . . . . . . . . . . . . . . . . Hacking | -11 -10 -9 -9 -8 -7 -7 -7 -7 -6 -6 -6 -6 -6 -6 -5 -5 -5 -5 -5 -5 -4 -4 -4 -4 -3 -3 -3 --------- Run | Yrd Mat Mat Min Mat Fac Low Low Dat Pro Fac Low Low Zio Dee Pro Fac Ext Cet Arc Hub Fac Upp Upp Zhi Pro Res Qua Machines Accessed 63 | . 6 6 . 7 9 . 1 3 1 7 1 2 . . . 3 3 1 . 3 1 . . 4 . 2 3 Terminals 42 | . 5 6 . 7 3 . . . 1 6 . 1 . . . 3 3 1 . 2 1 . . . . 2 1 Fabricators 2 | . . . . . 2 . . . . . . . . . . . . . . . . . . . . . . Repair Stations 4 | . 1 . . . 1 . . . . 1 . . . . . . . . . . . . . . . . 1 Recycling Units . | . . . . . . . . . . . . . . . . . . . . . . . . . . . . Scanalyzers 1 | . . . . . 1 . . . . . . . . . . . . . . . . . . . . . . Garrison Access 4 | . . . . . 2 . . . . . . . . . . . . . . 1 . . . . . . 1 Total Hacks 170 | . 15 20 . 22 18 . 1 16 1 12 1 2 . . . 6 3 2 . 6 7 . . 17 . 8 13 Successful 100 | . 10 10 . 11 13 . 1 16 1 6 1 2 . . . 1 . . . 3 1 . . 17 . 3 4 Failed 70 | . 5 10 . 11 5 . . . . 6 . . . . . 5 3 2 . 3 6 . . . . 5 9 Catastrophic 24 | . 1 . . 5 3 . . . . 3 . . . . . 3 2 1 . . 2 . . . . 2 2 Database Lockouts . | . . . . . . . . . . . . . . . . . . . . . . . . . . . . Manual 91 | . 13 17 . 20 3 . . . . 9 . . 1 . . 3 2 1 . 5 7 . . . . 4 6 Terminals 116 | . 13 20 . 22 9 . . . 1 11 . 1 . . . 6 3 2 . 5 7 . . . . 8 8 Fabricators 3 | . . . . . 3 . . . . . . . . . . . . . . . . . . . . . . Repair Stations 8 | . 2 . . . 2 . . . . 1 . . . . . . . . . . . . . . . . 3 Recycling Units . | . . . . . . . . . . . . . . . . . . . . . . . . . . . . Scanalyzers 2 | . . . . . 2 . . . . . . . . . . . . . . . . . . . . . . Garrison Access 5 | . . . . . 2 . . . . . . . . . . . . . . 1 . . . . . . 2 Terminal Hacks 62 | . 3 3 . 3 4 . 1 16 1 5 1 2 . . . 1 . . . . 1 . . 17 . 3 1 Record 9 | . . . . . . . . 1 1 . 1 1 . . . . . . . . . . . 5 . . . Part Schematic 15 | . 1 . . . 2 . . 8 . . . . . . . . . . . . . . . 4 . . . Robot Schematic 4 | . . . . . . . . 4 . . . . . . . . . . . . . . . . . . . Robot Analysis 8 | . 2 2 . . . . . . . . . . . . . . . . . . . . . 4 . . . Prototype ID Bank 8 | . . . . . 1 . . 3 . . . . . . . . . . . . . . . 4 . . . Open Door 2 | . . . . . . . 1 . . . . 1 . . . . . . . . . . . . . . . Branch Access Points 5 | . . 1 . . . . . . . 1 . . . . . 1 . . . . 1 . . . . 1 . Alert Level 4 | . . . . 1 . . . . . 1 . . . . . . . . . . . . . . . 1 1 Unreport Threat 3 | . . . . 1 . . . . . 2 . . . . . . . . . . . . . . . . . Locate Traps 3 | . . . . 1 . . . . . 1 . . . . . . . . . . . . . . . 1 . Recall Extermination 1 | . . . . . 1 . . . . . . . . . . . . . . . . . . . . . . Fabricator Hacks 2 | . . . . . 2 . . . . . . . . . . . . . . . . . . . . . . Network Status 1 | . . . . . 1 . . . . . . . . . . . . . . . . . . . . . . Load Schematic 1 | . . . . . 1 . . . . . . . . . . . . . . . . . . . . . . Repair Station Hacks 6 | . 2 . . . 2 . . . . . . . . . . . . . . . . . . . . . 2 Scan Component 3 | . 1 . . . 1 . . . . . . . . . . . . . . . . . . . . . 1 Repair 3 | . 1 . . . 1 . . . . . . . . . . . . . . . . . . . . . 1 Recycling Unit Hacks . | . . . . . . . . . . . . . . . . . . . . . . . . . . . . Scanalyzer 2 | . . . . . 2 . . . . . . . . . . . . . . . . . . . . . . Insert Component 1 | . . . . . 1 . . . . . . . . . . . . . . . . . . . . . . Analyze 1 | . . . . . 1 . . . . . . . . . . . . . . . . . . . . . . Garrison Access Hacks 3 | . . . . . 2 . . . . . . . . . . . . . . 1 . . . . . . . Seal Access 3 | . . . . . 2 . . . . . . . . . . . . . . 1 . . . . . . . Unauthorized Hacks 25 | . 5 7 . 8 1 . . . . 1 . . . . . . . . . 2 . . . . . . 1 Terminals 25 | . 5 7 . 8 1 . . . . 1 . . . . . . . . . 2 . . . . . . 1 Track 1 | . . . . . . . . . . . . . . . . . . . . 1 . . . . . . . Assimilate 2 | . . 1 . 1 . . . . . . . . . . . . . . . . . . . . . . . Botnet 5 | . . . . 1 1 . . . . 1 . . . . . . . . . 1 . . . . . . 1 Operators 3 | . 1 1 . 1 . . . . . . . . . . . . . . . . . . . . . . . Skim 14 | . 4 5 . 5 . . . . . . . . . . . . . . . . . . . . . . . Fabricators . | . . . . . . . . . . . . . . . . . . . . . . . . . . . . Repair Stations . | . . . . . . . . . . . . . . . . . . . . . . . . . . . . Recycling Units . | . . . . . . . . . . . . . . . . . . . . . . . . . . . . Scanalyzers . | . . . . . . . . . . . . . . . . . . . . . . . . . . . . Garrison Access . | . . . . . . . . . . . . . . . . . . . . . . . . . . . . Data Cores Recovered 3 | . . . . 1 . . . . . 1 . . . . . 1 . . . . . . . . . . . Used 1 | . . . . . . . . . . . . . . . . 1 . . . . . . . . . . . Hacking Detections 44 | . 6 5 . 7 5 . . . 1 7 . 1 . . . 3 3 1 . 1 1 . . . . 1 2 Full Trace Events 1 | . . . . . . . . . . . . . . . . 1 . . . . . . . . . . . Feedback Events 1 | . . . . . . . . . . . . . . . . 1 . . . . . . . . . . . Hackware Fried 1 | . . . . . . . . . . . . . . . . 1 . . . . . . . . . . . Feedback Blocked . | . . . . . . . . . . . . . . . . . . . . . . . . . . . . Robot Schematics Acquired 7 | . . . . . . . . 4 . . . . 3 . . . . . . . . . . . . . . Robots Built . | . . . . . . . . . . . . . . . . . . . . . . . . . . . . Authchips . | . . . . . . . . . . . . . . . . . . . . . . . . . . . . Time . | . . . . . . . . . . . . . . . . . . . . . . . . . . . . Total Robot Build Rating . | . . . . . . . . . . . . . . . . . . . . . . . . . . . . Part Schematics Acquired 32 | . 1 . . . 3 . . 8 . . . . 16 . . . . . . . . . . 4 . . . Parts Built . | . . . . . . . . . . . . . . . . . . . . . . . . . . . . Authchips . | . . . . . . . . . . . . . . . . . . . . . . . . . . . . Time . | . . . . . . . . . . . . . . . . . . . . . . . . . . . . Total Part Build Rating . | . . . . . . . . . . . . . . . . . . . . . . . . . . . . Parts Repaired 3 | . 1 . . . 1 . . . . . . . . . . . . . . . . . . . . . 1 Time 92 | . 26 . . . 38 . . . . . . . . . . . . . . . . . . . . . 28 Parts Recycled . | . . . . . . . . . . . . . . . . . . . . . . . . . . . . Recycled Matter . | . . . . . . . . . . . . . . . . . . . . . . . . . . . . Retrieved Matter . | . . . . . . . . . . . . . . . . . . . . . . . . . . . . Retrieved Components . | . . . . . . . . . . . . . . . . . . . . . . . . . . . . Parts Scanalyzed 1 | . . . . . 1 . . . . . . . . . . . . . . . . . . . . . . Part Schematics Acquired 1 | . . . . . 1 . . . . . . . . . . . . . . . . . . . . . . Parts Damaged . | . . . . . . . . . . . . . . . . . . . . . . . . . . . . Bothacking | -11 -10 -9 -9 -8 -7 -7 -7 -7 -6 -6 -6 -6 -6 -6 -5 -5 -5 -5 -5 -5 -4 -4 -4 -4 -3 -3 -3 ------------ Run | Yrd Mat Mat Min Mat Fac Low Low Dat Pro Fac Low Low Zio Dee Pro Fac Ext Cet Arc Hub Fac Upp Upp Zhi Pro Res Qua Used RIF Installer . | . . . . . . . . . . . . . . . . . . . . . . . . . . . . Robots Hacked . | . . . . . . . . . . . . . . . . . . . . . . . . . . . . Non-combat . | . . . . . . . . . . . . . . . . . . . . . . . . . . . . Combat . | . . . . . . . . . . . . . . . . . . . . . . . . . . . . Robot Hacks Applied . | . . . . . . . . . . . . . . . . . . . . . . . . . . . . Relay Couplers Released 3 | . . . . . . . . . . . . . . . . 3 . . . . . . . . . . . Programmers 3 | . . . . . . . . . . . . . . . . 3 . . . . . . . . . . . Fabnet Peak Effective % . | . . . . . . . . . . . . . . . . . . . . . . . . . . . . Robots Rewired 9 | . . . . . . . . . . . . . . . . . 9 . . . . . . . . . . Allies Hacked . | . . . . . . . . . . . . . . . . . . . . . . . . . . . . Hacks Repelled . | . . . . . . . . . . . . . . . . . . . . . . . . . . . . Allies | -11 -10 -9 -9 -8 -7 -7 -7 -7 -6 -6 -6 -6 -6 -6 -5 -5 -5 -5 -5 -5 -4 -4 -4 -4 -3 -3 -3 -------- Run | Yrd Mat Mat Min Mat Fac Low Low Dat Pro Fac Low Low Zio Dee Pro Fac Ext Cet Arc Hub Fac Upp Upp Zhi Pro Res Qua Total Allies 28 | . . . 3 . . . . . . . . . 6 1 . . 13 5 . . . . . . . . . Largest Group 8 | . . . 3 3 . . . . . . . . 6 7 . . 6 8 5 3 . . . . . . . Highest-Rated Group 678 | . . . 40 40 . . . . . . . . 291 410 . . 295 678 327 288 . . . . . . . Highest-Rated Ally 159 | . . . 16 16 . . . . . . . . 96 119 . . 159 159 96 96 . . . . . . . Total Orders . | . . . . . . . . . . . . . . . . . . . . . . . . . . . . Ally Attacks 295 | . . . . 29 . . . . . . . . . 83 . . 39 59 31 54 . . . . . . . Total Damage 9516 | . . . . 291 . . . . . . . . . 2857 . . 721 2473 1186 1988 . . . . . . . Kills 51 | . . . . 4 . . . . . . . . . 17 . . 4 9 4 13 . . . . . . . Allies Corrupted 1 | . . . . . . . . . . . . . . . . . . 1 . . . . . . . . . Allies Melted 2 | . . . . 1 . . . . . . . . . 1 . . . . . . . . . . . . . Intel | -11 -10 -9 -9 -8 -7 -7 -7 -7 -6 -6 -6 -6 -6 -6 -5 -5 -5 -5 -5 -5 -4 -4 -4 -4 -3 -3 -3 ------- Run | Yrd Mat Mat Min Mat Fac Low Low Dat Pro Fac Low Low Zio Dee Pro Fac Ext Cet Arc Hub Fac Upp Upp Zhi Pro Res Qua Robot Analysis Total 8 | . 2 2 . . . . . . . . . . . . . . . . . . . . . 4 . . . Derelict Logs Recovered 12 | . . . 1 . . 1 1 . 1 . 2 1 1 . 1 . . . . . . 1 2 . . . . Drone Launches . | . . . . . . . . . . . . . . . . . . . . . . . . . . . . Drone Recoveries . | . . . . . . . . . . . . . . . . . . . . . . . . . . . . Exploration | -11 -10 -9 -9 -8 -7 -7 -7 -7 -6 -6 -6 -6 -6 -6 -5 -5 -5 -5 -5 -5 -4 -4 -4 -4 -3 -3 -3 ------------- Run | Yrd Mat Mat Min Mat Fac Low Low Dat Pro Fac Low Low Zio Dee Pro Fac Ext Cet Arc Hub Fac Upp Upp Zhi Pro Res Qua Turns Passed 40043 | 113 1753 1252 1116 1468 1982 573 636 241 2034 2761 702 1127 3145 4525 836 1314 2304 888 1452 1407 1075 1380 1463 974 671 2511 340 Spaces Moved 15485 | 65 1064 568 580 484 734 243 288 99 459 957 308 533 2040 1673 302 440 842 214 185 529 229 527 517 224 290 996 95 Core 78 | 17 . . . . . . . . . . . . . . . 6 . . 35 . . . . 20 . . . Treads 6097 | . 5 22 . 451 141 . 24 99 459 370 . . . 780 . . 400 214 150 529 229 527 517 132 . 953 95 Legs 2329 | . . . . . . . . . . . . . . 746 302 434 442 . . . . . . 72 290 43 . Wheels 6981 | 48 1059 546 580 33 593 243 264 . . 587 308 533 2040 147 . . . . . . . . . . . . . Hover . | . . . . . . . . . . . . . . . . . . . . . . . . . . . . Flight . | . . . . . . . . . . . . . . . . . . . . . . . . . . . . Fastest Speed 50 | 50 80 110 150 150 190 175 175 242 320 125 145 130 130 160 210 210 210 240 240 160 163 243 243 163 210 160 240 Average Speed 208 | 74 137 143 150 234 215 181 200 242 321 221 145 144 144 226 210 246 236 241 725 239 242 243 243 382 210 187 240 Slowest Speed 2900 | 90 320 320 150 242 322 190 323 322 322 800 145 145 145 400 210 2900 560 320 2850 320 325 325 243 2850 210 300 240 Overloaded Moves . | . . . . . . . . . . . . . . . . . . . . . . . . . . . . Propulsion Burnouts . | . . . . . . . . . . . . . . . . . . . . . . . . . . . . Robots Hopped . | . . . . . . . . . . . . . . . . . . . . . . . . . . . . Cave-ins Triggered 1 | . . . . . . . . . . . . 1 . . . . . . . . . . . . . . . Teleports 1 | . . . . . . . . . . . . . . . . . . . . . . . . . . 1 . Exploration Rate (%) 54 | 4 98 43 96 45 21 51 59 75 59 27 55 72 86 89 47 16 85 67 75 49 11 74 68 62 47 26 17 Regions Visited 27 Branch Regions 19 Pre-discovered Areas 13 | . . 2 1 2 . . 1 . . . 1 1 1 . . . . . . . . 1 . 3 . . . Known Exits Taken 13 | . . 1 . 1 1 . . . 1 1 . . . . 1 1 . . . . 1 1 1 1 1 1 . Unknown Exits Taken 14 | 1 1 . 1 . . 1 1 1 . . 1 1 1 1 . . 1 1 1 1 . . . . . . . Scrap Searched 21 | . . . 3 . . . 3 . 1 . 1 3 3 . . . . . . . . 3 3 . 1 . . Spaces Dug 167 | . . 4 . 11 18 . 15 . 3 5 1 3 . 4 2 6 . . . 2 13 . 21 . 12 43 4 Terrain Destroyed 880 | . . 5 13 19 23 . 37 . 41 38 1 7 . 8 12 28 13 9 11 359 52 7 77 . 27 84 9 Melee 28 | . . . . 11 9 . . . . 3 1 . . 4 . . . . . . . . . . . . . Projectile 312 | . . 4 . . . . 5 . 14 15 . 7 . 4 12 23 13 3 11 21 25 7 33 . 27 79 9 AOE 540 | . . 1 13 8 14 . 32 . 27 20 . . . . . 5 . 6 . 338 27 . 44 . . 5 . Terrain Rammed . | . . . . . . . . . . . . . . . . . . . . . . . . . . . . Walls Destroyed . | . . . . . . . . . . . . . . . . . . . . . . . . . . . . Machines Disabled . | . . . . . . . . . . . . . . . . . . . . . . . . . . . . Actions | -11 -10 -9 -9 -8 -7 -7 -7 -7 -6 -6 -6 -6 -6 -6 -5 -5 -5 -5 -5 -5 -4 -4 -4 -4 -3 -3 -3 --------- Run | Yrd Mat Mat Min Mat Fac Low Low Dat Pro Fac Low Low Zio Dee Pro Fac Ext Cet Arc Hub Fac Upp Upp Zhi Pro Res Qua Total 21311 | 100 1260 857 789 723 1012 295 323 102 975 1368 538 877 2190 2305 448 574 1056 556 242 599 660 584 660 347 316 1390 165 Wait 3364 | . 106 78 144 132 132 . 7 . 476 122 203 302 83 330 100 42 23 279 21 17 354 24 104 86 5 166 28 Move 15457 | 64 1063 567 579 483 733 242 287 98 458 956 307 531 2039 1672 301 439 841 213 184 528 228 526 516 223 289 995 95 Hop . | . . . . . . . . . . . . . . . . . . . . . . . . . . . . Pick Up 273 | 10 13 32 10 10 21 1 5 . 6 36 1 6 5 56 4 7 8 10 3 3 10 . 1 3 1 10 1 Fast Attach 123 | 6 . 5 . 1 3 1 . . . 19 . 7 9 22 . 3 12 4 1 2 1 4 . 9 . 12 2 Attach 91 | 2 1 4 . 3 5 6 5 2 3 9 2 2 3 12 . 1 2 5 1 2 6 . . . 1 12 2 Detach 74 | 1 . 3 . . 3 . 1 2 . 1 . . 3 15 . 4 8 4 . . 3 1 1 9 . 12 3 Swap 392 | . 28 58 22 35 26 11 4 . 10 50 13 4 13 38 12 21 9 8 2 1 8 6 3 3 2 5 . Drop 315 | 2 1 35 11 11 20 . . . . 50 . 12 13 87 4 6 12 15 3 4 2 3 . 14 . 10 . Fire 1044 | 15 47 75 17 36 58 34 14 . 22 120 11 12 8 37 25 50 66 18 27 31 48 20 35 . 18 166 34 Melee 80 | . . . 6 11 9 . . . . 3 1 . 14 36 . . . . . . . . . . . . . Ram 3 | . 1 . . . 1 . . . . 1 . . . . . . . . . . . . . . . . . Kick 3 | . . . . . . . . . . . . . . . 2 1 . . . . . . . . . . . Crush 16 | . . . . 1 1 . . . . 1 . . . . . . . . . 11 . . . . . 2 . Escape Stasis 8 | . . . . . . . . . . . . 1 . . . . 7 . . . . . . . . . . Rewire 68 | . . . . . . . . . . . . . . . . . 68 . . . . . . . . . . Trap . | . . . . . . . . . . . . . . . . . . . . . . . . . . . . Miscellaneous . | . . . . . . . . . . . . . . . . . . . . . . . . . . . . Route ------- -11/Scrapyard -10/Materials (discovered 5 exits: *Mat x3 / [*Min x2]) -9/Materials (discovered 2 exits: *Mat / *Min) -9/Mines (discovered 2 exits: *Mat x2) -8/Materials (discovered 3 exits: *Fac x3) -7/Factory (discovered 5 exits: Fac x3 / Sto / *Low) -7/Lower Caves -7/Lower Caves -7/Data Miner -6/Proximity Caves -6/Factory (discovered 3 exits: Fac / *Low x2) -6/Lower Caves -6/Lower Caves -6/Zion (discovered 2 exits: [*Dee] / [*Pro]) -6/Deep Caves -5/Proximity Caves -5/Factory (discovered 4 exits: *Upp x2 / *Ext x2) -5/Extension (discovered 3 exits: *Fac x2 / *Cet) -5/Cetus (discovered 2 exits: *Fac / [*Arc]) -5/Archives (discovered 3 exits: *Fac / *Hub x2) -5/Hub_04(d) (discovered 4 exits: *Fac x4) -4/Factory (discovered 3 exits: *Upp x2 / Arm) -4/Upper Caves -4/Upper Caves -4/Zhirov -3/Proximity Caves -3/Research (discovered 3 exits: *Res / *Qua x2) -3/Quarantine History --------- Turn | Location | Event 11 | -11/Scrapyard | Discovered new exit (range 13) 114 | -11/Scrapyard | Entered Materials 314 | -10/Materials | Build established: Mutant 349 | -10/Materials | Repaired Assault Rifle 510 | -10/Materials | Discovered new exit (range 14) 601 | -10/Materials | Discovered new exit (range 8) 822 | -10/Materials | Discovered new exit (range 12) 887 | -10/Materials | Discovered new exit (range 14) 1207 | -10/Materials | Discovered new exit (range 16) 1867 | -10/Materials | Entered another Materials area 1867 | -9/Materials | Evolved 2 slots: Propulsion x1, Utility x1 2370 | -9/Materials | Build established: Hauler-Mutant 2738 | -9/Materials | Discovered new exit (range 10) 2824 | -9/Materials | Identified exit to Mines 2873 | -9/Materials | Learned location of 1 exit from Recycling 2911 | -9/Materials | Learned location of Mines (-9) 2972 | -9/Materials | Loaded intel: 2 repair station locations 2981 | -9/Materials | Learned Storage emergency access door positions 3001 | -9/Materials | Learned Storage trap positions 3119 | -9/Materials | Entered Mines 3145 | -9/Mines | Met a Derelict bent on vengeance 3177 | -9/Mines | Learned location of Zion (-6) 3353 | -9/Mines | Found a damaged Exp. Sensor Array with a note attached 3356 | -9/Mines | Found Prototype Device 3411 | -9/Mines | Joined a pair of Derelicts in attacking an 0b10 outpost 3515 | -9/Mines | Excavation squad dispatched 3515 | -9/Mines | A large section of the Mines collapsed 3704 | -9/Mines | Discovered new exit (range 7) 3717 | -9/Mines | Assisted by bots powering up and referring to "LRC-V3" 3815 | -9/Mines | Discovered new exit (range 12) 4235 | -9/Mines | Entered Materials 4235 | -8/Materials | Accompanied by 3 allies 4235 | -8/Materials | Evolved 2 slots: Propulsion x1, Utility x1 4665 | -8/Materials | Lost 3 allies 5113 | -8/Materials | Discovered new exit (range 16) 5531 | -8/Materials | Identified exit to Factory 5573 | -8/Materials | Learned Factory interactive machine intel 5642 | -8/Materials | Learned location of 1 exit from Recycling 5646 | -8/Materials | Learned Factory emergency access door positions 5662 | -8/Materials | Learned location of Extension (-5) 5703 | -8/Materials | Entered Factory 5703 | -7/Factory | Evolved 2 slots: Utility x2 5704 | -7/Factory | Identified exit to Factory 5704 | -7/Factory | Identified exit to Storage 5704 | -7/Factory | Identified exit to Lower Caves 5706 | -7/Factory | Loaded intel: 52 interactive machine locations 7371 | -7/Factory | Repaired Hvy. Armor Plating 7607 | -7/Factory | Identified Exp. Sensor Array 7685 | -7/Factory | Entered Lower Caves 7990 | -7/Lower Caves | Learned location of 1 exit from Factory 7994 | -7/Lower Caves | Spotted B-75 Beast 8020 | -7/Lower Caves | Destroyed B-75 Beast 8048 | -7/Lower Caves | Lost 3 parts (1p2u) 8249 | -7/Lower Caves | Discovered new exit (range 6) 8258 | -7/Lower Caves | Entered another Lower Caves area 8577 | -7/Lower Caves | Encountered a Warlord checkpoint 8824 | -7/Lower Caves | Lost 3 parts (1p2n) 8844 | -7/Lower Caves | Discovered new exit (range 9) 8894 | -7/Lower Caves | Entered Data Miner 8895 | -7/Data Miner | Discovered new exit (range 6) 8941 | -7/Data Miner | Met Data Miner 9043 | -7/Data Miner | Received God Mode back door access code from Data Miner 9135 | -7/Data Miner | Entered Proximity Caves 10123 | -6/Proximity Caves | Learned Factory stockpile data 10242 | -6/Proximity Caves | Spotted B-75 Beast 10278 | -6/Proximity Caves | Destroyed B-75 Beast 11147 | -6/Proximity Caves | Discovered exit to Factory (range 7) 11169 | -6/Proximity Caves | Entered Factory 11169 | -6/Factory | Evolved 2 slots: Power x1, Utility x1 11170 | -6/Factory | Identified exit to Factory 12342 | -6/Factory | Cargo convoy interrupted 12596 | -6/Factory | Lost 5 parts (1p3n1u) 12857 | -6/Factory | Lost 4 parts (1p2n1w) 13217 | -6/Factory | Build established: Scavenger-Mutant 13224 | -6/Factory | Identified exit to Lower Caves 13930 | -6/Factory | Entered Lower Caves 14005 | -6/Lower Caves | Found Alien Artifact 14058 | -6/Lower Caves | Learned Factory terminal intel 14123 | -6/Lower Caves | Build established: Hauler-Mutant 14622 | -6/Lower Caves | Discovered new exit (range 7) 14632 | -6/Lower Caves | Entered another Lower Caves area 15340 | -6/Lower Caves | Crushed by falling debris 15341 | -6/Lower Caves | System corruption reached 10% 15730 | -6/Lower Caves | Discovered new exit (range 15) 15759 | -6/Lower Caves | Entered Zion 15786 | -6/Zion | Given A8's code to call for help 15813 | -6/Zion | System corruption cleaned by Quarantine Array 16064 | -6/Zion | Discovered new exit (range 16) 16385 | -6/Zion | Found CR-A16's Pointy Stick 16716 | -6/Zion | Met Imprinter 16867 | -6/Zion | Learned location of Armory (-4) 16912 | -6/Zion | Gained Derelict followers 17669 | -6/Zion | Identified Dimensional Node Initializer 17669 | -6/Zion | Initialized slip node 17825 | -6/Zion | Enhanced Grunt warped into view, answering call for help 17828 | -6/Zion | Enhanced Grunt warped into view, answering call for help 18579 | -6/Zion | Discovered new exit (range 3) 18579 | -6/Zion | Saw the warning signs outside the Deep Caves entrance 18734 | -6/Zion | System corruption cleaned by Quarantine Array 18904 | -6/Zion | Entered Deep Caves 18904 | -6/Deep Caves | Accompanied by 6 allies 18906 | -6/Deep Caves | Met 5H-AD0 19029 | -6/Deep Caves | Found Surveybot 24 Scanner 19032 | -6/Deep Caves | Found Surveybot 24 Chip 19234 | -6/Deep Caves | Z-Facility disabled 19246 | -6/Deep Caves | Attacked by Z-Imprinter 19264 | -6/Deep Caves | Allies destroyed Z-Imprinter 19295 | -6/Deep Caves | Lost 3 allies 19328 | -6/Deep Caves | Found Prototype Protection 19332 | -6/Deep Caves | Found Prototype Protection 19333 | -6/Deep Caves | Identified Zio. Weapon Casing (x2) 19453 | -6/Deep Caves | Found Prototype Device 19453 | -6/Deep Caves | Identified Exp. Thermal Shield 19591 | -6/Deep Caves | Build established: Scavenger-Mutant 19754 | -6/Deep Caves | Found Prototype Protection 19754 | -6/Deep Caves | Identified Zio. Heavy Carapace 19932 | -6/Deep Caves | Found Zio. Heavy Carapace 20001 | -6/Deep Caves | Found Zio. Weapon Casing 20056 | -6/Deep Caves | Found Zio. Weapon Casing 20736 | -6/Deep Caves | Discovered new exit (range 7) 20865 | -6/Deep Caves | Spotted AG-11167 20897 | -6/Deep Caves | Destroyed AG-11167 20933 | -6/Deep Caves | Found GOLEM Unit 21091 | -6/Deep Caves | Spotted AG-92166 21135 | -6/Deep Caves | Destroyed AG-92166 21140 | -6/Deep Caves | Found GOLEM Unit 21206 | -6/Deep Caves | Triggered Deep Caves wall 21206 | -6/Deep Caves | Spotted AS-44215 21211 | -6/Deep Caves | Exposed GOLEM chamber 21220 | -6/Deep Caves | Destroyed AS-00149 21221 | -6/Deep Caves | Destroyed AS-44215 21241 | -6/Deep Caves | Destroyed 35 combat bots 21346 | -6/Deep Caves | Destroyed 9 combat bots 21350 | -6/Deep Caves | Found GOLEM Unit 21365 | -6/Deep Caves | Found GOLEM Unit 21414 | -6/Deep Caves | Found GOLEM Unit 22011 | -6/Deep Caves | Build established: Golem 22027 | -6/Deep Caves | Found Deploy-a-Sentry 22391 | -6/Deep Caves | Found Exp. Thermal Shield 23429 | -6/Deep Caves | Entered Proximity Caves 23967 | -5/Proximity Caves | Core integrity fell below 50% 24130 | -5/Proximity Caves | Discovered exit to Factory (range 14) 24227 | -5/Proximity Caves | Learned Factory stockpile data 24265 | -5/Proximity Caves | Entered Factory 24265 | -5/Factory | Evolved 2 slots: Power x1, Utility x1 24267 | -5/Factory | Loaded intel: 28 terminal locations 24414 | -5/Factory | Identified exit to Upper Caves 24414 | -5/Factory | Identified exit to Extension 24563 | -5/Factory | System Shield fried by hacking feedback 24960 | -5/Factory | Destroyed 7 combat bots 25409 | -5/Factory | Build established: Scavenger-Golem 25579 | -5/Factory | Entered Extension 25793 | -5/Extension | Rescued a captive Derelict 25793 | -5/Extension | Rescued a captive Derelict 26037 | -5/Extension | Found Unknown Protection 26041 | -5/Extension | Found Unknown Protection 26041 | -5/Extension | Identified Hvy. Insulated Plating (x2) 26062 | -5/Extension | Build established: Golem 26675 | -5/Extension | Discovered new exit (range 23) 26676 | -5/Extension | Spotted B-75 Beast 26714 | -5/Extension | Spotted B-75 Beast 26732 | -5/Extension | Lost 6 allies 26759 | -5/Extension | Destroyed B-75 Beast 26769 | -5/Extension | Lost 4 parts (1p2n1u) 27110 | -5/Extension | Rescued a captive Derelict 27114 | -5/Extension | Build established: Scavenger-Golem 27557 | -5/Extension | Rescued A7 27782 | -5/Extension | Discovered new exit (range 24) 27791 | -5/Extension | Discovered new exit (range 24) 27883 | -5/Extension | Entered Cetus 27883 | -5/Cetus | Accompanied by 5 allies (A7) 27888 | -5/Cetus | Acquired a Cetus Manufacturing Module code from A7 27920 | -5/Cetus | Spotted Cetus Guard 27920 | -5/Cetus | Spotted Cetus Guard 27923 | -5/Cetus | Spotted Cetus Guard 27926 | -5/Cetus | Destroyed Cetus Guard 27930 | -5/Cetus | Allies destroyed Cetus Guard 27931 | -5/Cetus | Allies destroyed Cetus Guard 27931 | -5/Cetus | Spotted Cetus Guard 27936 | -5/Cetus | Destroyed Cetus Guard 28002 | -5/Cetus | System corruption reached 10% 28128 | -5/Cetus | Started Cetus Manufacturing Module 28153 | -5/Cetus | Manufactured an Enhanced Grunt 28178 | -5/Cetus | Manufactured an Enhanced Grunt 28203 | -5/Cetus | Manufactured an Enhanced Grunt 28228 | -5/Cetus | Manufactured an Enhanced Grunt 28253 | -5/Cetus | Manufactured an Enhanced Grunt 28400 | -5/Cetus | Discovered new exit (range 23) 28464 | -5/Cetus | Discovered new exit (range 24) 28464 | -5/Cetus | Spotted Cetus Guard 28464 | -5/Cetus | Spotted Cetus Guard 28466 | -5/Cetus | Spotted Cetus Guard 28466 | -5/Cetus | Spotted Cetus Guard 28476 | -5/Cetus | Allies destroyed Cetus Guard 28483 | -5/Cetus | Destroyed Cetus Guard 28486 | -5/Cetus | Allies destroyed Cetus Guard 28493 | -5/Cetus | Allies destroyed Cetus Guard 28495 | -5/Cetus | Build established: Commander-Mutant 28510 | -5/Cetus | Met Revision 17 28633 | -5/Cetus | Security sweep announced 28732 | -5/Cetus | Murdered A7 28737 | -5/Cetus | Extracted ID and sensor layout for unrecognized location from A7's data core 28771 | -5/Cetus | Entered Archives 28771 | -5/Archives | Accompanied by 5 allies 28784 | -5/Archives | Discovered new exit (range 23) 28810 | -5/Archives | Discovered new exit (range 24) 28842 | -5/Archives | Discovered new exit (range 24) 29042 | -5/Archives | Build established: Scavenger-Golem 29498 | -5/Archives | Build established: Golem 30223 | -5/Archives | Entered Hub_04(d) 30223 | -5/Hub_04(d) | Accompanied by 3 allies 30333 | -5/Hub_04(d) | Build established: Scavenger-Golem 30760 | -5/Hub_04(d) | Discovered new exit (range 23) 30761 | -5/Hub_04(d) | Discovered new exit (range 20) 30879 | -5/Hub_04(d) | Discovered new exit (range 23) 30886 | -5/Hub_04(d) | Discovered new exit (range 24) 31523 | -5/Hub_04(d) | Network Hub disabled 31550 | -5/Hub_04(d) | Network Hub disabled 31550 | -5/Hub_04(d) | Spotted Lightning 31557 | -5/Hub_04(d) | Spotted Lightning 31560 | -5/Hub_04(d) | Spotted Lightning 31560 | -5/Hub_04(d) | Spotted Lightning 31564 | -5/Hub_04(d) | Spotted Lightning 31564 | -5/Hub_04(d) | Spotted Lightning 31602 | -5/Hub_04(d) | System corruption reached 30% 31615 | -5/Hub_04(d) | Core integrity fell below 50% 31630 | -5/Hub_04(d) | Entered Factory 31630 | -4/Factory | Evolved 2 slots: Utility x2 31648 | -4/Factory | Lost 10 parts (2p2n4u2w) 32067 | -4/Factory | Identified exit to Upper Caves 32067 | -4/Factory | Identified exit to Armory 32361 | -4/Factory | Build established: Scavenger-Mutant 32519 | -4/Factory | Found Hvy. Insulated Plating 32531 | -4/Factory | Found Hvy. Insulated Plating 32705 | -4/Factory | Entered Upper Caves 32707 | -4/Upper Caves | Attracted the attention of an 0b10 checkpoint 33505 | -4/Upper Caves | Spotted B-86 Titan 33525 | -4/Upper Caves | Destroyed B-86 Titan 34033 | -4/Upper Caves | Discovered new exit (range 16) 34083 | -4/Upper Caves | Identified exit to Upper Caves 34085 | -4/Upper Caves | Entered another Upper Caves area 34516 | -4/Upper Caves | Learned Research terminal intel 34526 | -4/Upper Caves | Encountered a Warlord checkpoint 35176 | -4/Upper Caves | Discovered new exit (range 18) 35351 | -4/Upper Caves | Build established: Scavenger-Skirmisher 35544 | -4/Upper Caves | Identified exit to Zhirov 35548 | -4/Upper Caves | Entered Zhirov 35550 | -4/Zhirov | Discovered new exit (range 4) 35579 | -4/Zhirov | Met Zhirov 35625 | -4/Zhirov | Learned location of Quarantine (-3) 35625 | -4/Zhirov | Learned location of Testing (-2) 35625 | -4/Zhirov | Learned location of Command (-1) 35641 | -4/Zhirov | Zhirov requested help retrieving the SGEMP Prototype 35684 | -4/Zhirov | Found Alien Artifact 35684 | -4/Zhirov | Identified Integrated Reactor 35684 | -4/Zhirov | Installed Integrated Reactor, increased core energy generation (+10) 35710 | -4/Zhirov | Found Alien Artifact 35994 | -4/Zhirov | Build established: Mutant 36520 | -4/Zhirov | Identified exit to Proximity Caves 36522 | -4/Zhirov | Entered Proximity Caves 36726 | -3/Proximity Caves | Build established: Scavenger-Golem 37156 | -3/Proximity Caves | Discovered new exit (range 8) 37170 | -3/Proximity Caves | Identified exit to Research 37193 | -3/Proximity Caves | Entered Research 37193 | -3/Research | Evolved 2 slots: Propulsion x1, Utility x1 37194 | -3/Research | Loaded intel: 24 terminal locations 37243 | -3/Research | Identified exit to Quarantine 37393 | -3/Research | Revision forces began assault on 0b10 37438 | -3/Research | Met up with Revision 17++ 37580 | -3/Research | Discovered new exit (range 15) 37604 | -3/Research | Identified exit to Research 37779 | -3/Research | Build established: Scavenger-Skirmisher 37893 | -3/Research | Research terminal network offline 38412 | -3/Research | Spotted Striker 38413 | -3/Research | Spotted Striker 38485 | -3/Research | Spotted Striker 38508 | -3/Research | Spotted Striker 38510 | -3/Research | Spotted Striker 38516 | -3/Research | Destroyed Striker 38521 | -3/Research | Destroyed Striker 38554 | -3/Research | Lost 7 allies 38593 | -3/Research | Spotted Striker 38599 | -3/Research | Destroyed Striker 38600 | -3/Research | Spotted Striker 38602 | -3/Research | Spotted Striker 38620 | -3/Research | Destroyed Striker 38623 | -3/Research | Identified Transdimensional Reconstructor 38623 | -3/Research | Warped through subspace 38650 | -3/Research | Lost 3 allies 38859 | -3/Research | Spotted Striker 38859 | -3/Research | Spotted Striker 38863 | -3/Research | Spotted Executioner 38883 | -3/Research | Destroyed Striker 38891 | -3/Research | Destroyed Striker 38901 | -3/Research | Destroyed Executioner 38921 | -3/Research | Build established: Mutant 38955 | -3/Research | Lost 11 parts (1p2n6u2w) 39226 | -3/Research | Spotted Striker 39230 | -3/Research | Spotted Striker 39237 | -3/Research | Core integrity fell below 50% 39242 | -3/Research | Destroyed Striker 39261 | -3/Research | Destroyed Striker 39291 | -3/Research | Spotted Striker 39310 | -3/Research | Destroyed Striker 39330 | -3/Research | Spotted Striker 39335 | -3/Research | Lost 3 allies 39350 | -3/Research | Destroyed Striker 39361 | -3/Research | Core integrity fell below 20% 39404 | -3/Research | Lost 11 parts (2p3n5u1w) 39452 | -3/Research | Spotted Executioner 39493 | -3/Research | Destroyed Executioner 39704 | -3/Research | Entered Quarantine 39756 | -3/Quarantine | Build established: Scavenger-Golem 39778 | -3/Quarantine | Found Alien Artifact 39778 | -3/Quarantine | Identified Phase Redirector 39837 | -3/Quarantine | Found Exp. Thermal Shield 39941 | -3/Quarantine | Repaired Hvy. Treads 39994 | -3/Quarantine | System corruption reached 10% 40044 | -3/Quarantine | Destroyed by H-77 Assassin with Coil Gun Last Messages --------------- 40038_ Asb. Alloy Armor destroyed. 40039_ Penetrated by Slug. 40039_ Slug penetrates Wall. 40039_ Penetrated by Slug. 40039_ Asb. Nanovents destroyed. 40040_ M-36 Artificer fits Unknown Hover Unit on G-67 Veteran. 40040_ Destroyed Lgt. Antimatter Reactor. 40041_ K-01 Serf collects debris. 40041_ Asb. Focal Cannon destroyed. 40041_ U-05 Engineer builds a Wall. 40041_ R-10 Processor collects Unknown Processor. 40041_ K-01 Serf destroyed. 40042_ M-36 Artificer fits Backup Plating VII on G-67 Veteran. 40042_ Penetrated by Slug. 40042_ Slug penetrates Wall. 40042_ Penetrated by Slug. 40042_ Slug penetrates Wall. 40044_ Penetrated by Slug. Map ----- +----------------------------------------------------+ | """ """ # # """ #?????????????????????????? | | """ """ # # """ #?????????????????????????? | | # # """ #?????????????????????????? | | ! # # #?????????????????????????? | | # ##"" ""###?????????????????????????? | | """T""" # ##""G""#???????????????????????????? | | ########## ########???????????????????????????? | | ?????????# #??????????????????????????????????? | | ???####??# ##########?????????????????????????? | | ??? ?# # #?????????????????????????? | | ???"""""?# # """ #?????????????????????????? | | ??"""""" # # """ ! ####??????????????????????? | | # """""" # # """ "" #??????????????????????? | | # + + """#??????????????????????? | | # """""" # # """ = R"#??????????????????????? | | ??"""""" # # """ """#??????????????????????? | | ???"""""?# # """ ####??????????????????????? | | ??? ?# # "########?????????????????? | | ???####??# ########""# "" #?????????????????? | | ?????????# ##########" ""S ]#?????????????????? | | ?????????# #?## "" #?????????????????? | | ?????????# h#### #?????????????????? | | ?????????# u / !! #?????????????????? | | ?????????# # !!! #?????????????????? | | ?????????# ####+#+##mg#%#####?????????????????? | | ?????????# # %g@#" ????????????????????? | | ?????????# # """ = "h%/ #???????????????????? | | ?????????+ +?""" " |####???????????????????? | | ?????????? ??""" T"R#??????????????????????? | | ???????????????? ! ""%#??????????????????????? | | ??????????????? ""R#??????????????????????? | | ??????????????# +??????????????????????? | | ???????????????############??????????????????????? | | ?????????????????????????????????????????????????? | | ?????????????????????????????????????????????????? | | ?????????????????????????????????????????????????? | | ?????????????????????????????????????????????????? | | ?????????????????????????????????????????????????? | | ?????????????????????????????????????????????????? | | ?????????????????????????????????????????????????? | | ?????????????????????????????????????????????????? | | ?????????????????????????????????????????????????? | | ?????????????????????????????????????????????????? | | ?????????????????????????????????????????????????? | | ?????????????????????????????????????????????????? | | ?????????????????????????????????????????????????? | | ?????????????????????????????????????????????????? | | ?????????????????????????????????????????????????? | | ?????????????????????????????????????????????????? | | ?????????????????????????????????????????????????? | +----------------------------------------------------+ Best States ------------- Heat Dissipation 91 Coolant Potential 80 Energy Generation 73 Energy Capacity 1295 Matter Stores 300 Matter Capacity 300 Sight Range 22 Robot Scan Range 16 Terrain Scan Range 24 Terrain Scan Density 2010 Additional Mass Support 20 EM Shielding 2 Armor Coverage 1200 Resistance: KI 20 Resistance: TH 30 Resistance: EX 15 Resistance: EM 30 Resistance: I 15 Resistance: S 15 Resistance: P 15 Core Shielding 20 Weapon Shielding 100 Weapon Cycling 20 Evasion (%) 50 Recoil Reduction 5 Particle Charging 25 Salvage Targeting 4 Offensive Hacking 38 Defensive Hacking 10 Item Schematics ----------------- Huge Storage Unit | -10/Materials | Hacked Focal Shield | -7/Factory | Hacked Smartbomb Launcher | -7/Factory | Hacked Exp. Sensor Array | -7/Factory | Scanalyzed Combat Drone Bay | -7/Data Miner | Free Lgt. Regenerative Plating | -7/Data Miner | Free Biomechanical Wings | -7/Data Miner | Free Gravity Neutralizer | -7/Data Miner | Free Prc. Rocket Launcher | -7/Data Miner | Free Nuclear Pulse Array | -7/Data Miner | Free Recoil Nullifier | -7/Data Miner | Free Wave Gun | -7/Data Miner | Free Point Defense System | -6/Zion | Archive Angular Momentum Engine | -6/Zion | Archive Imp. System Shield | -6/Zion | Archive Imp. Plasma Cutter | -6/Zion | Archive Point Defense Array | -6/Zion | Archive Lgt. Angular Momentum Engine | -6/Zion | Archive Hyp. Gauss Cannon | -6/Zion | Archive EM Disruption Field | -6/Zion | Archive Field Propulsion Drive | -6/Zion | Archive Imp. Hacking Suite | -6/Zion | Archive Adv. Shield Generator | -6/Zion | Archive Nuclear Pulse Thruster | -6/Zion | Archive Imp. Dynamic Insulation System | -6/Zion | Archive System Guard | -6/Zion | Archive Matter Neutralizer | -6/Zion | Archive Imp. KE Penetrator | -6/Zion | Archive Assault Drone Bay | -4/Zhirov | Free Exp. Heat Sink | -4/Zhirov | Free Exp. Optical Array | -4/Zhirov | Free Imp. Arc Thrower | -4/Zhirov | Free Robot Schematics ------------------ M-28 Smith | -7/Data Miner | Free M-14 Sweeper | -7/Data Miner | Free P-60 Hacker | -7/Data Miner | Free R-10 Processor | -7/Data Miner | Free E-15 Imp | -6/Zion | Archive R-06 Scavenger | -6/Zion | Archive X-62 Marksman | -6/Zion | Archive Fabricated ------------ Nothing Alien Tech Used ----------------- Dimensional Node Initializer Integrated Reactor Transdimensional Reconstructor Phase Redirector Achievements -------------- Revolutionary Research Z1$+NX3F=JRE3_ZNQR Challenges ------------ None Game ------ Seed AmuletNuclearClaymores Manual? 0 Play Time 04:52:14 Cumulative 147.4 hours Start 2024.09.07 @ 13:37:26 End 2024.09.08 @ 19:27:46 Sessions 11 Manual Loads 0 Difficulty Rogue Special Mode None Game No. 88 Rogue 75 Adventurer 13 Explorer 0 Win Type - Total 2 Types 2/0/0/0/0/0/0/0/0 Lore% 51 Gallery% 63 Achievement% 53 Wizard Run 0 Options --------- Layout 2 ASCII 0 Keyboard 1 Movement Numpad Keybinds 0 Fullscreen 2 Font 16/Swanston Map View 55x47 Zoom Use 0% Tactical HUD 1 Map Filters NONE Filters NONE Steam 0 RUN: a6311c9c-2200-47dc-a980-d86aea8f8c67